fUST/lending_fUST_20241017
["ID","MTS","AMOUNT","RATE_DAILY","PERIOD"]
[340377712,1729140647142,-895.459465,0.0001534,2]
[340377713,1729140647152,-522.756778,0.0001534,2]
[340377714,1729140647162,-895.459465,0.0001534,2]
[340377715,1729140647171,-895.459465,0.0001534,2]
[340377716,1729140647182,-895.459465,0.0001534,2]
[340377717,1729140647192,-895.459465,0.0001534,2]
[340377718,1729140647202,-895.459469,0.0001534,2]
[340377719,1729140647213,-218.578024,0.0001534,2]
[340377720,1729140647222,-218.578014,0.0001534,2]
[340377721,1729140647232,-202.86343,0.0001534,2]
[340377722,1729140647242,-202.86343,0.0001534,2]
[340377723,1729140647252,-202.86343,0.0001534,2]
[340377724,1729140647263,-202.86343,0.0001534,2]
[340377725,1729140647274,-202.86343,0.0001534,2]
[340377726,1729140647284,-202.86343,0.0001534,2]
[340377727,1729140647294,-10956.0490958,0.00015354,2]
[340377728,1729140647304,-68652.0835806,0.00015354,2]
[340377729,1729140647315,-157.813727,0.00015354,2]
[340377730,1729140647325,-392.004988,0.00015354,2]
[340377731,1729140647335,-392.004988,0.00015354,2]
[340377732,1729140647345,-16434.0736437,0.00015356,2]
[340377733,1729140647356,-5478.02454791,0.00015366,2]
[340377734,1729140647366,-501.99362584,0.00015373,2]
[340377735,1729140647376,-500.0,0.00015373,2]
[340377736,1729140647387,-500.0,0.00015373,2]
[340377737,1729140647398,-500.0,0.00015373,2]
[340377738,1729140647409,-500.0,0.00015373,2]
[340377739,1729140647418,-500.0,0.00015373,2]
[340377740,1729140647428,-503.37491479,0.00015373,2]
[340377741,1729140647438,-372.71145255,0.00015373,2]
[340377742,1729140647449,-591.32662608,0.00015373,2]
[340377743,1729140647459,-500.0,0.00015373,2]
[340377744,1729140647470,-500.37607044,0.00015373,2]
[340377745,1729140647480,-500.0,0.00015373,2]
[340377746,1729140647491,-500.0,0.00015373,2]
[340377747,1729140647501,-500.0,0.00015373,2]
[340377748,1729140647512,-495.36600512,0.00015373,2]
[340377749,1729140647522,-204.939205,0.00015376,2]
[340377750,1729140647532,-204.939205,0.00015376,2]
[340377751,1729140647542,-151.0,0.00015376,2]
[340377752,1729140647554,-151.0,0.00015376,2]
[340377753,1729140647565,-156.441546,0.00015376,2]
[340377754,1729140647576,-156.441546,0.00015376,2]
[340377755,1729140647587,-151.595271,0.00015376,2]
[340377756,1729140647597,-151.0,0.00015376,2]
[340377757,1729140647610,-260.870216,0.00015376,2]
[340377758,1729140647621,-151.0,0.00015376,2]
[340377759,1729140647631,-151.0,0.00015376,2]
[340377760,1729140647643,-151.0,0.00015376,2]
[340377761,1729140647653,-151.0,0.00015376,2]
[340377762,1729140647664,-152.594277,0.00015376,2]
[340377763,1729140647675,-151.0,0.00015376,2]
[340377764,1729140647685,-151.0,0.00015376,2]
[340377765,1729140647695,-151.0,0.00015376,2]
[340377766,1729140647705,-151.0,0.00015376,2]
[340377767,1729140647715,-151.0,0.00015376,2]
[340377768,1729140647726,-151.0,0.00015376,2]
[340377769,1729140647736,-154.050867,0.00015376,2]
[340377770,1729140647746,-154.050867,0.00015376,2]
[340377771,1729140647756,-151.0,0.00015376,2]
[340377772,1729140647766,-151.0,0.00015376,2]
[340377773,1729140647776,-154.050867,0.00015376,2]
[340377774,1729140647787,-154.050867,0.00015376,2]
[340377775,1729140647797,-151.0,0.00015376,2]
[340377776,1729140647808,-151.0,0.00015376,2]
[340377777,1729140647818,-151.0,0.00015376,2]
[340377778,1729140647828,-151.0,0.00015376,2]
[340377779,1729140647839,-151.0,0.00015376,2]
[340377780,1729140647849,-151.0,0.00015376,2]
[340377781,1729140647860,-154.393895,0.00015376,2]
[340377782,1729140647870,-164.744506,0.00015376,2]
[340377783,1729140647880,-164.744506,0.00015376,2]
[340377784,1729140647891,-164.744506,0.00015376,2]
[340377785,1729140647901,-164.744506,0.00015376,2]
[340377786,1729140647911,-174.73533,0.00015376,2]
[340377787,1729140647921,-174.73533,0.00015376,2]
[340377788,1729140647931,-174.73533,0.00015376,2]
[340377789,1729140647944,-174.73533,0.00015376,2]
[340377790,1729140647955,-174.73533,0.00015376,2]
[340377791,1729140647966,-174.73533,0.00015376,2]
[340377792,1729140647976,-174.73533,0.00015376,2]
[340377793,1729140647986,-174.73533,0.00015376,2]
[340377794,1729140647996,-392.004988,0.00015376,2]
[340377795,1729140648006,-392.004988,0.00015376,2]
[340377796,1729140648017,-392.004988,0.00015376,2]
[340377797,1729140648027,-392.004988,0.00015376,2]
[340377798,1729140648038,-392.004988,0.00015376,2]
[340377799,1729140648048,-392.004988,0.00015376,2]
[340377800,1729140648058,-392.004988,0.00015376,2]
[340377801,1729140648068,-392.004988,0.00015376,2]
[340377802,1729140648078,-392.004988,0.00015376,2]
[340377803,1729140648088,-392.004988,0.00015376,2]
[340377804,1729140648098,-392.004988,0.00015376,2]
[340377805,1729140648108,-392.004988,0.00015376,2]
[340377806,1729140648118,-392.004988,0.00015376,2]
[340377807,1729140648129,-392.004991,0.00015376,2]
[340377808,1729140648139,-287.676863,0.00015376,2]
[340377809,1729140648149,-287.676863,0.00015376,2]
[340377810,1729140648160,-287.676863,0.00015376,2]
[340377811,1729140648171,-287.676863,0.00015376,2]
[340377812,1729140648182,-1433.403402,0.00015376,2]
[340377813,1729140648192,-1433.403402,0.00015376,2]
[340377814,1729140648203,-1433.403402,0.00015376,2]
[340377815,1729140648213,-1433.403402,0.00015376,2]
[340377816,1729140648223,-1433.403402,0.00015376,2]
[340377817,1729140648233,-287.676863,0.00015376,2]
[340377818,1729140648244,-287.676863,0.00015376,2]
[340377819,1729140648255,-1433.403402,0.00015376,2]
[340377820,1729140648267,-1433.403402,0.00015376,2]
[340377821,1729140648278,-1433.403402,0.00015376,2]
[340377822,1729140648289,-1433.403402,0.00015376,2]
[340377823,1729140648300,-1433.403402,0.00015376,2]
[340377824,1729140648310,-287.676863,0.00015376,2]
[340377825,1729140648320,-287.676863,0.00015376,2]
[340377826,1729140648330,-287.676863,0.00015376,2]
[340377827,1729140648340,-287.676863,0.00015376,2]
[340377828,1729140648350,-287.676863,0.00015376,2]
[340377829,1729140648361,-287.676863,0.00015376,2]
[340377830,1729140648371,-522.756778,0.00015376,2]
[340377831,1729140648382,-522.756778,0.00015376,2]
[340377832,1729140648398,-522.756778,0.00015376,2]
[340377833,1729140648409,-522.756778,0.00015376,2]
[340377834,1729140648420,-522.756778,0.00015376,2]
[340377835,1729140648430,-522.756778,0.00015376,2]
[340377836,1729140648440,-522.756778,0.00015376,2]
[340377837,1729140648451,-522.756778,0.00015376,2]
[340377838,1729140648460,-522.756778,0.00015376,2]
[340377839,1729140648471,-522.756769,0.00015376,2]
[340377840,1729140648481,-202.86343,0.00015376,2]
[340377841,1729140648492,-202.86343,0.00015376,2]
[340377842,1729140648503,-202.86343,0.00015376,2]
[340377843,1729140648514,-202.86343,0.00015376,2]
[340377844,1729140648524,-202.86343,0.00015376,2]
[340377845,1729140648534,-202.86343,0.00015376,2]
[340377846,1729140648545,-202.86343,0.00015376,2]
[340377847,1729140648556,-202.86343,0.00015376,2]
[340377848,1729140648567,-202.86343,0.00015376,2]
[340377849,1729140648577,-202.86342,0.00015376,2]
[340377850,1729140648587,-5478.02454791,0.00015398,2]
[340377851,1729140648602,-153.0,0.000154,2]
[340377852,1729140648613,-150.112233,0.000154,2]
[340377853,1729140648625,-150.112233,0.000154,2]
[340377854,1729140648637,-150.112234,0.000154,2]
[340377855,1729140648647,-508.99559818,0.000154,2]
[340377856,1729140648658,-504.83292054,0.000154,2]
[340377857,1729140648911,-150.112233,0.000154,2]
[340377858,1729140648931,-150.112233,0.000154,2]
[340377859,1729140648941,-1001.22112129,0.000154,2]
[340377860,1729140648951,-1000.0,0.000154,2]
[340377861,1729140648960,-1000.0,0.000154,2]
[340377862,1729140648970,-1000.0,0.000154,2]
[340377863,1729140648980,-504.0880137,0.000154,2]
[340377864,1729140648990,-1071.49219839,0.000154,2]
[340377865,1729140649000,-1000.0,0.000154,2]
[340377866,1729140649010,-10956.0490958,0.00015402,2]
[340377867,1729140649020,-5478.02454791,0.00015402,2]
[340377868,1729140649030,-5478.02454791,0.00015408,2]
[340377869,1729140649041,-151.0,0.00015418,2]
[340377870,1729140649051,-151.0,0.00015418,2]
[340377871,1729140649060,-151.0,0.00015418,2]
[340377872,1729140649070,-151.0,0.00015418,2]
[340377873,1729140649080,-256.025083,0.00015418,2]
[340377874,1729140649090,-151.0,0.00015418,2]
[340377875,1729140649100,-151.0,0.00015418,2]
[340377876,1729140649109,-151.0,0.00015418,2]
[340377877,1729140649118,-151.0,0.00015418,2]
[340377878,1729140649128,-151.0,0.00015418,2]
[340377879,1729140649139,-151.0,0.00015418,2]
[340377880,1729140649149,-151.0,0.00015418,2]
[340377881,1729140649159,-151.0,0.00015418,2]
[340377882,1729140649169,-77.41816028,0.00015418,2]
[340377883,1729140649509,-73.58183972,0.00015418,2]
[340377884,1729140649520,-151.0,0.00015418,2]
[340377885,1729140649530,-60.71704285,0.00015418,2]
[340377886,1729140649543,-90.28295715,0.00015418,2]
[340377887,1729140649554,-216.936561,0.00015418,2]
[340377888,1729140649564,-154.050867,0.00015418,2]
[340377889,1729140649574,-154.050867,0.00015418,2]
[340377890,1729140649584,-148.02877747,0.00015418,2]
[340377891,1729140649681,-2.97122253,0.00015418,2]
[340377892,1729140649691,-154.050867,0.00015418,2]
[340377893,1729140649702,-154.050867,0.00015418,2]
[340377894,1729140649713,-151.0,0.00015418,2]
[340377895,1729140649722,-154.050867,0.00015418,2]
[340377896,1729140649733,-151.0,0.00015418,2]
[340377897,1729140649744,-154.050867,0.00015418,2]
[340377898,1729140649754,-151.0,0.00015418,2]
[340377899,1729140649764,-111.13590671,0.00015418,2]
[340377900,1729140649776,-42.91496029,0.00015418,2]
[340377901,1729140649786,-162.04362,0.00015418,2]
[340377902,1729140649796,-154.050867,0.00015418,2]
[340377903,1729140649806,-154.050867,0.00015418,2]
[340377904,1729140649815,-77.11325325,0.00015418,2]
[340377905,1729140650162,-76.93761375,0.00015418,2]
[340377906,1729140650172,-154.050867,0.00015418,2]
[340377907,1729140650182,-154.050867,0.00015418,2]
[340377908,1729140650191,-154.050867,0.00015418,2]
[340377909,1729140650201,-154.050867,0.00015418,2]
[340377910,1729140650211,-154.050867,0.00015418,2]
[340377911,1729140650221,-154.050873,0.00015418,2]
[340377912,1729140650231,-151.0,0.00015418,2]
[340377913,1729140650241,-151.378232,0.00015418,2]
[340377914,1729140650252,-151.0,0.00015418,2]
[340377915,1729140650263,-151.0,0.00015418,2]
[340377916,1729140650274,-151.0,0.00015418,2]
[340377917,1729140650284,-151.0,0.00015418,2]
[340377918,1729140650294,-211.686909,0.00015418,2]
[340377919,1729140650305,-164.744506,0.00015418,2]
[340377920,1729140650316,-164.744506,0.00015418,2]
[340377921,1729140650325,-164.744506,0.00015418,2]
[340377922,1729140650336,-164.744506,0.00015418,2]
[340377923,1729140650346,-164.744506,0.00015418,2]
[340377924,1729140650356,-164.744506,0.00015418,2]
[340377925,1729140650366,-164.744501,0.00015418,2]
[340377926,1729140650375,-174.73533,0.00015418,2]
[340377927,1729140650385,-174.73533,0.00015418,2]
[340377928,1729140650395,-174.73533,0.00015418,2]
[340377929,1729140650406,-174.73533,0.00015418,2]
[340377930,1729140650416,-174.73533,0.00015418,2]
[340377931,1729140650426,-174.73533,0.00015418,2]
[340377932,1729140650437,-174.73533,0.00015418,2]
[340377933,1729140650446,-174.73533,0.00015418,2]
[340377934,1729140650457,-174.73533,0.00015418,2]
[340377935,1729140650468,-174.735337,0.00015418,2]
[340377936,1729140650478,-1433.403402,0.00015418,2]
[340377937,1729140650489,-1433.403402,0.00015418,2]
[340377938,1729140650497,-287.676863,0.00015418,2]
[340377939,1729140650506,-287.676863,0.00015418,2]
[340377940,1729140650518,-1433.403402,0.00015418,2]
[340377941,1729140650527,-1433.403412,0.00015418,2]
[340377942,1729140650536,-287.676863,0.00015418,2]
[340377943,1729140650546,-287.676867,0.00015418,2]
[340377944,1729140650555,-5478.02454791,0.00015423,2]
[340377945,1729140650564,-1563.25963826,0.0001543,2]
[340377946,1729140650573,-151.0,0.0001543,2]
[340377947,1729140650582,-173.747596,0.0001543,2]
[340377948,1729140650591,-151.0,0.0001543,2]
[340377949,1729140650600,-151.0,0.0001543,2]
[340377950,1729140650612,-955.46,0.00015431,2]
[340377951,1729140650621,-600.0,0.00015431,2]
[340377952,1729140650631,-600.0,0.00015431,7]
[340377953,1729140650640,-151.0,0.00015433,2]
[340377954,1729140650651,-264.231952,0.00015433,2]
[340377955,1729140650660,-151.0,0.00015433,2]
[340377956,1729140650669,-151.0,0.00015433,2]
[340377957,1729140650679,-151.0,0.00015433,2]
[340377958,1729140650688,-151.0,0.00015433,2]
[340377959,1729140650698,-243.631716,0.00015433,2]
[340377960,1729140650707,-151.0,0.00015433,2]
[340377961,1729140650716,-1371.24770023,0.0001544,2]
[340377962,1729140650725,-1509.7102204,0.0001544,2]
[340377963,1729140650734,-1500.0,0.0001544,2]
[340377964,1729140650743,-206.710677,0.00015443,2]
[340377965,1729140650753,-206.710677,0.00015443,2]
[340377966,1729140650762,-206.710677,0.00015443,2]
[340377967,1729140650771,-206.710677,0.00015443,2]
[340377968,1729140650781,-206.710677,0.00015443,2]
[340377969,1729140650790,-206.710677,0.00015443,2]
[340377970,1729140650799,-206.710677,0.00015443,2]
[340377971,1729140650808,-206.710677,0.00015443,2]
[340377972,1729140650818,-206.710677,0.00015443,2]
[340377973,1729140650827,-206.710677,0.00015443,2]
[340377974,1729140650836,-206.710677,0.00015443,2]
[340377975,1729140650846,-206.710677,0.00015443,2]
[340377976,1729140650855,-206.710677,0.00015443,2]
[340377977,1729140650864,-206.710677,0.00015443,2]
[340377978,1729140650874,-206.710677,0.00015443,2]
[340377979,1729140650883,-206.710677,0.00015443,2]
[340377980,1729140650893,-206.710677,0.00015443,2]
[340377981,1729140650902,-206.710677,0.00015443,2]
[340377982,1729140650911,-206.710677,0.00015443,2]
[340377983,1729140650920,-204.939205,0.00015443,2]
[340377984,1729140650929,-206.710671,0.00015443,2]
[340377985,1729140650938,-204.939205,0.00015443,2]
[340377986,1729140650947,-204.939205,0.00015443,2]
[340377987,1729140650957,-204.939205,0.00015443,2]
[340377988,1729140650966,-204.939205,0.00015443,2]
[340377989,1729140650975,-204.939205,0.00015443,2]
[340377990,1729140650984,-204.939205,0.00015443,2]
[340377991,1729140650993,-204.939205,0.00015443,2]
[340377992,1729140651002,-204.939205,0.00015443,2]
[340377993,1729140651011,-204.939205,0.00015443,2]
[340377994,1729140651082,-204.939205,0.00015443,2]
[340377995,1729140651093,-151.0,0.00015443,2]
[340377996,1729140651102,-204.939205,0.00015443,2]
[340377997,1729140651112,-151.0,0.00015443,2]
[340377998,1729140651122,-204.939205,0.00015443,2]
[340377999,1729140651131,-151.0,0.00015443,2]
[340378000,1729140651141,-204.939205,0.00015443,2]
[340378001,1729140651150,-204.939205,0.00015443,2]
[340378002,1729140651160,-151.0,0.00015443,2]
[340378003,1729140651169,-204.939205,0.00015443,2]
[340378004,1729140651178,-151.0,0.00015443,2]
[340378005,1729140651187,-204.939205,0.00015443,2]
[340378006,1729140651196,-151.0,0.00015443,2]
[340378007,1729140651205,-204.939206,0.00015443,2]
[340378008,1729140651214,-151.0,0.00015443,2]
[340378009,1729140651224,-151.0,0.00015443,2]
[340378010,1729140651233,-151.0,0.00015443,2]
[340378011,1729140651243,-151.0,0.00015443,2]
[340378012,1729140651252,-151.0,0.00015443,2]
[340378013,1729140651261,-151.0,0.00015443,2]
[340378014,1729140651272,-151.0,0.00015443,2]
[340378015,1729140651282,-151.0,0.00015443,2]
[340378016,1729140651291,-210.469771,0.00015443,2]
[340378017,1729140651300,-156.441546,0.00015443,2]
[340378018,1729140651309,-156.441546,0.00015443,2]
[340378019,1729140651318,-156.441546,0.00015443,2]
[340378020,1729140651327,-156.441546,0.00015443,2]
[340378021,1729140651337,-156.441546,0.00015443,2]
[340378022,1729140651345,-156.441546,0.00015443,2]
[340378023,1729140651355,-156.441546,0.00015443,2]
[340378024,1729140651364,-156.441546,0.00015443,2]
[340378025,1729140651373,-156.441546,0.00015443,2]
[340378026,1729140651382,-156.441546,0.00015443,2]
[340378027,1729140651392,-156.441546,0.00015443,2]
[340378028,1729140651401,-156.441546,0.00015443,2]
[340378029,1729140651411,-156.441546,0.00015443,2]
[340378030,1729140651422,-156.441546,0.00015443,2]
[340378031,1729140651433,-156.441546,0.00015443,2]
[340378032,1729140651444,-156.441546,0.00015443,2]
[340378033,1729140651453,-156.441546,0.00015443,2]
[340378034,1729140651462,-156.441553,0.00015443,2]
[340378035,1729140651472,-1140.15851092,0.00015447,2]
[340378036,1729140651483,-151.0,0.00015454,2]
[340378037,1729140651493,-151.0,0.00015454,2]
[340378038,1729140651504,-151.0,0.00015454,2]
[340378039,1729140651514,-151.0,0.00015454,2]
[340378040,1729140651525,-151.0,0.00015454,2]
[340378041,1729140651535,-185.343424,0.00015454,2]
[340378042,1729140651545,-151.0,0.00015454,2]
[340378043,1729140651554,-151.0,0.00015454,2]
[340378044,1729140651563,-151.0,0.00015454,2]
[340378045,1729140651572,-151.0,0.00015454,2]
[340378046,1729140651581,-151.0,0.00015454,2]
[340378047,1729140651590,-151.0,0.00015454,2]
[340378048,1729140651600,-151.0,0.00015454,2]
[340378049,1729140651614,-151.0,0.00015454,2]
[340378050,1729140651624,-151.0,0.00015454,2]
[340378051,1729140651633,-250.183569,0.00015454,2]
[340378052,1729140651643,-151.0,0.00015454,2]
[340378053,1729140651654,-151.0,0.00015454,2]
[340378054,1729140651665,-151.0,0.00015454,2]
[340378055,1729140651675,-151.0,0.00015454,2]
[340378056,1729140651685,-151.0,0.00015454,2]
[340378057,1729140651694,-151.0,0.00015454,2]
[340378058,1729140651703,-151.0,0.00015454,2]
[340378059,1729140651712,-151.0,0.00015454,2]
[340378060,1729140651721,-151.0,0.00015454,2]
[340378061,1729140651730,-151.0,0.00015454,2]
[340378062,1729140651739,-151.0,0.00015454,2]
[340378063,1729140651748,-151.0,0.00015454,2]
[340378064,1729140651757,-151.0,0.00015454,2]
[340378065,1729140651766,-151.0,0.00015454,2]
[340378066,1729140651775,-151.0,0.00015454,2]
[340378067,1729140651784,-151.0,0.00015454,2]
[340378068,1729140651793,-225.486615,0.00015454,2]
[340378069,1729140651803,-212.237813,0.00015454,2]
[340378070,1729140651811,-151.0,0.00015454,2]
[340378071,1729140651820,-151.0,0.00015454,2]
[340378072,1729140651829,-151.0,0.00015454,2]
[340378073,1729140651838,-151.0,0.00015454,2]
[340378074,1729140651847,-151.0,0.00015454,2]
[340378075,1729140651857,-151.0,0.00015454,2]
[340378076,1729140651866,-151.0,0.00015454,2]
[340378077,1729140651875,-151.0,0.00015454,2]
[340378078,1729140651884,-151.0,0.00015454,2]
[340378079,1729140651893,-191.675352,0.00015454,2]
[340378080,1729140651902,-151.0,0.00015454,2]
[340378081,1729140651911,-212.586428,0.00015454,2]
[340378082,1729140651922,-153.830803,0.00015465,2]
[340378083,1729140651931,-151.0,0.00015465,2]
[340378084,1729140651940,-151.0,0.00015465,2]
[340378085,1729140651949,-151.0,0.00015465,2]
[340378086,1729140651958,-256.791045,0.00015465,2]
[340378087,1729140651967,-151.0,0.00015465,2]
[340378088,1729140651977,-151.0,0.00015465,2]
[340378089,1729140651986,-151.0,0.00015465,2]
[340378090,1729140651995,-151.0,0.00015465,2]
[340378091,1729140652005,-151.0,0.00015465,2]
[340378092,1729140652014,-151.0,0.00015465,2]
[340378093,1729140652023,-151.0,0.00015465,2]
[340378094,1729140652033,-151.0,0.00015465,2]
[340378095,1729140652042,-151.0,0.00015465,2]
[340378096,1729140652050,-151.0,0.00015465,2]
[340378097,1729140652059,-153.816256,0.00015465,2]
[340378098,1729140652069,-550.45910807,0.00015473,2]
[340378099,1729140652078,-500.0,0.00015473,2]
[340378100,1729140652087,-501.85974748,0.00015473,2]
[340378101,1729140652096,-500.0,0.00015473,2]
[340378102,1729140652106,-502.20212038,0.00015473,2]
[340378103,1729140652117,-502.17237328,0.00015473,2]
[340378104,1729140652127,-211.93477042,0.00015473,2]
[340378105,1729140652138,-500.0,0.00015473,2]
[340378106,1729140652149,-500.91165525,0.00015473,2]
[340378107,1729140652159,-522.16220071,0.00015473,2]
[340378108,1729140652169,-586.7372154,0.00015473,2]
[340378109,1729140652179,-5478.02454791,0.00015476,2]
[340378110,1729140652189,-2000.0,0.00015487,2]
[340378111,1729140652199,-1000.0,0.000155,2]
[340378112,1729140652208,-347.56398408,0.000155,2]
[340378113,1729140652218,-502.03368952,0.000155,2]
[340378114,1729140652229,-150.112233,0.000155,2]
[340378115,1729140652238,-150.112233,0.000155,2]
[340378116,1729140652248,-247.040628,0.00015504,2]
[340378117,1729140652258,-16434.0736437,0.00015533,2]
[340378118,1729140652270,-2500.0,0.00015539,2]
[340378119,1729140652280,-1500.0,0.0001554,2]
[340378120,1729140652290,-12455.73132105,0.00015543,2]
[340378121,1729140658119,791.65,0.00010959,2]
[340378123,1729140917740,186.7652217,0.00013367,2]
[340378125,1729141155277,2687.8337058,0.00013917,2]
[340378127,1729141241433,308.558919,0.00013699,2]
[340378128,1729141458598,3000.0,0.00013364,2]
[340378129,1729141510053,24900.0,0.00013525,2]
[340378171,1729141834731,-166.060685,0.00014011,2]
[340378173,1729141834742,-166.060685,0.00014084,2]
[340378174,1729141834753,-206.08267256,0.0001415,2]
[340378175,1729141834765,-43.7665189,0.00014157,2]
[340378180,1729141838130,-122.2941661,0.00014157,2]
[340378181,1729141838143,-166.060685,0.0001423,2]
[340378182,1729141838154,-166.060685,0.00014303,2]
[340378183,1729141838167,-166.060685,0.00014376,2]
[340378184,1729141838179,-166.060685,0.00014449,2]
[340378185,1729141838192,-153.0,0.000145,2]
[340378186,1729141838203,-414.3746803,0.000145,2]
[340378188,1729141838215,-153.0,0.000145,2]
[340378189,1729141838226,-414.3746803,0.000145,2]
[340378190,1729141838236,-166.060685,0.00014522,2]
[340378191,1729141838245,-166.060685,0.00014595,2]
[340378192,1729141838256,-166.060685,0.00014668,2]
[340378193,1729141838269,-166.060685,0.00014741,2]
[340378194,1729141838280,-502.81541426,0.00014824,2]
[340378195,1729141838293,-300.0,0.00014825,2]
[340378196,1729141838305,-135.42505979,0.00014825,2]
[340378197,1729141838325,-164.57494021,0.00014825,2]
[340378198,1729141838335,-423.6584688,0.00014826,2]
[340378199,1729141838346,-301.9500594,0.00014826,2]
[340378200,1729141838358,-420.8332686,0.00014826,2]
[340378201,1729141838369,-301.9500594,0.00014826,2]
[340378202,1729141838380,-210.4166343,0.00014826,2]
[340378203,1729141838392,-210.4166343,0.00014826,2]
[340378204,1729141838404,-210.4166343,0.00014826,2]
[340378205,1729141838415,-727.4496692,0.00014826,2]
[340378206,1729141838425,-414.3746803,0.00014826,2]
[340378207,1729141838435,-98.74609471,0.00014878,2]
[340378208,1729141838462,-111.67053959,0.00014878,2]
[340378209,1729141838473,-414.3746803,0.00014878,2]
[340378210,1729141838484,-301.9500594,0.00014878,2]
[340378211,1729141838495,-153.0,0.000149,2]
[340378212,1729141838507,-314.35701033,0.00015388,2]
[340378213,1729141838517,-289.97954741,0.00015388,2]
[340378224,1729141840099,-26044.15229204,0.00015388,2]
[340378225,1729141840110,-1000.0,0.00015422,2]
[340378226,1729141840122,-258.987,0.00015463,2]
[340378227,1729141840132,-306.0,0.00015469,2]
[340378228,1729141840145,-150.112233,0.000155,2]
[340378229,1729141840157,-150.112233,0.000155,2]
[340378230,1729141840167,-150.112233,0.000155,2]
[340378231,1729141840178,-150.112233,0.000155,2]
[340378232,1729141840191,-150.112233,0.000155,2]
[340378233,1729141840202,-150.112233,0.000155,2]
[340378234,1729141840213,-150.112233,0.000155,2]
[340378235,1729141840223,-150.112233,0.000155,2]
[340378236,1729141840234,-150.112233,0.000155,2]
[340378237,1729141840246,-150.112233,0.000155,2]
[340378238,1729141840256,-150.112233,0.000155,2]
[340378239,1729141840267,-150.112233,0.000155,2]
[340378240,1729141840278,-150.112233,0.000155,2]
[340378241,1729141840290,-150.112233,0.000155,2]
[340378242,1729141840301,-49810.0455201,0.00015502,2]
[340378243,1729141840311,-2288.86356075,0.00015502,2]
[340378244,1729141840338,-671.77936835,0.00015502,2]
[340378245,1729141840355,-32839.39406784,0.00015502,2]
[340378252,1729141846006,-414.3746803,0.00014826,2]
[340378253,1729141846016,-148.60587683,0.00015502,2]
[340378254,1729141846063,-524.68895133,0.00015502,2]
[340378273,1729142263059,6232.28,0.00014,2]
[340378298,1729142488538,717.14,0.00027,60]
[340378305,1729142745137,420.0,0.00027,60]
[340378328,1729143032218,-300.0,0.00014438,2]
[340378330,1729143032227,-300.0,0.00014438,2]
[340378332,1729143032237,-15902.5880025,0.00014439,2]
[340378334,1729143032247,-500.0,0.00014481,2]
[340378336,1729143032257,-500.0,0.00014482,2]
[340378338,1729143032267,-500.0,0.00014482,2]
[340378341,1729143032280,-500.0,0.00014482,2]
[340378342,1729143032290,-400.0,0.00014482,2]
[340378344,1729143032299,-4550.79984712,0.00015369,2]
[340378346,1729143032309,-1000.0,0.00015379,2]
[340378349,1729143032319,-150.112233,0.000154,2]
[340378351,1729143032328,-150.112233,0.000154,2]
[340378353,1729143032337,-150.112233,0.000154,2]
[340378355,1729143032347,-500.0,0.000154,2]
[340378357,1729143032359,-500.0,0.00015412,2]
[340378358,1729143032369,-502.0,0.00015412,2]
[340378359,1729143032378,-1008.97375041,0.00015412,2]
[340378360,1729143032389,-209.57134022,0.00015469,2]
[340378362,1729143032398,-11609.34893843,0.00015469,2]
[340378364,1729143032409,-2629.50508325,0.00015469,2]